lending/lending_fUSD_20250210
["ID","MTS","AMOUNT","RATE_DAILY","PERIOD"]
[352577961,1739176467828,-500.0,9.999e-05,2]
[352577962,1739176467854,-500.0,9.999e-05,2]
[352577963,1739176467880,-500.0,9.999e-05,2]
[352577964,1739176467908,-500.0,9.999e-05,2]
[352577965,1739176467934,-526.56,9.999e-05,2]
[352577966,1739176467960,-607.06,9.999e-05,2]
[352577967,1739176467988,-500.0,9.999e-05,2]
[352577968,1739176468014,-500.0,9.999e-05,2]
[352577969,1739176468041,-329.18191633,9.999e-05,2]
[352577970,1739176590718,150.0,0.00019919,120]
[352577971,1739176770779,150.0,0.00019892,120]
[352578022,1739177432187,-347.643165,9.713e-05,2]
[352578023,1739177432199,-541.316835,9.713e-05,2]
[352578024,1739177432210,-171.481585,9.999e-05,2]
[352578025,1739177432223,-328.518415,9.999e-05,2]
[352578026,1739177432233,-430.940975,9.999e-05,2]
[352578027,1739177432246,-69.059025,9.999e-05,2]
[352578028,1739177432257,-503.98872638,9.999e-05,2]
[352578029,1739177432267,-483.34224862,9.999e-05,2]
[352578030,1739177432292,-16.65775138,9.999e-05,2]
[352578031,1739177432302,-500.0,9.999e-05,2]
[352578032,1739177432313,-315.81604862,9.999e-05,2]
[352578033,1739177432346,-192.57038153,9.999e-05,2]
[352578034,1739177432356,-127.30682313,9.999e-05,2]
[352578035,1739177432503,-372.69317687,9.999e-05,2]
[352578036,1739177432513,-503.63465017,9.999e-05,2]
[352578037,1739177432523,-500.0,9.999e-05,2]
[352578038,1739177432533,-500.0,9.999e-05,2]
[352578039,1739177432543,-500.0,9.999e-05,2]
[352578040,1739177432552,-159.67351193,9.999e-05,2]
[352578041,1739177432570,-340.32648807,9.999e-05,2]
[352578042,1739177432579,-500.0,9.999e-05,2]
[352578043,1739177432589,-500.0,9.999e-05,2]
[352578044,1739177432601,-501.92843302,9.999e-05,2]
[352578045,1739177432613,-500.0,9.999e-05,2]
[352578046,1739177432623,-500.0,9.999e-05,2]
[352578047,1739177432634,-500.0,9.999e-05,2]
[352578048,1739177432644,-500.0,9.999e-05,2]
[352578049,1739177432654,-501.76568613,9.999e-05,2]
[352578051,1739177432664,-500.0,9.999e-05,2]
[352578053,1739177432675,-500.0,9.999e-05,2]
[352578055,1739177432685,-500.0,9.999e-05,2]
[352578057,1739177432695,-681.15,9.999e-05,2]
[352578059,1739177432706,-500.0,9.999e-05,2]
[352578061,1739177432715,-500.0,9.999e-05,2]
[352578063,1739177432726,-512.86113742,9.999e-05,2]
[352578065,1739177432736,-502.27545329,9.999e-05,2]
[352578067,1739177432746,-500.0,9.999e-05,2]
[352578069,1739177432756,-500.0,9.999e-05,2]
[352578071,1739177432766,-500.0,9.999e-05,2]
[352578073,1739177432776,-505.88996934,9.999e-05,2]
[352578075,1739177432786,-500.0,9.999e-05,2]
[352578077,1739177432796,-500.0,9.999e-05,2]
[352578079,1739177432806,-500.0,9.999e-05,2]
[352578081,1739177432816,-500.0,9.999e-05,2]
[352578083,1739177432826,-594.9497502,9.999e-05,2]
[352578085,1739177432836,-503.48902837,9.999e-05,2]
[352578087,1739177432846,-500.5755676,9.999e-05,2]
[352578089,1739177432856,-502.0818625,9.999e-05,2]
[352578091,1739177432868,-500.0,9.999e-05,2]
[352578093,1739177432878,-500.0,9.999e-05,2]
[352578095,1739177432888,-504.31929932,9.999e-05,2]
[352578097,1739177432898,-575.84589645,0.00010037,2]
[352578099,1739177432908,-500.0,0.00010136,2]
[352578102,1739177432918,-681.15,0.00010136,2]
[352578104,1739177432928,-502.50490929,0.00010136,2]
[352578106,1739177432939,-474.95,0.00010137,2]
[352578108,1739177432949,-681.15,0.00010273,2]
[352578110,1739177432959,-681.15,0.0001041,2]
[352578112,1739177432970,-681.15,0.00010547,2]
[352578114,1739177432980,-681.15,0.00010684,2]
[352578116,1739177432990,-681.15,0.00010821,2]
[352578119,1739177433001,-2678.51,0.00010821,2]
[352578121,1739177433012,-681.15,0.00010958,2]
[352578123,1739177433022,-9999.99,0.00010958,2]
[352578149,1739177433263,-150.99,0.00010958,2]
[352578152,1739177433285,-681.15,0.00011095,2]
[352578155,1739177433296,-1000.0,0.00011174,2]
[352578157,1739177433306,-681.15,0.00011232,2]
[352578159,1739177433316,-150.0,0.00011295,2]
[352578160,1739177433325,-651.4,0.000113,2]
[352578163,1739177433335,-442.76,0.00011309,2]
[352578165,1739177433345,-163.48,0.00011317,2]
[352578166,1739177433354,-681.15,0.00011369,2]
[352578169,1739177433364,-681.15,0.00011506,2]
[352578171,1739177433374,-242.17,0.00011507,2]
[352578172,1739177433383,-681.15,0.00011643,2]
[352578174,1739177433393,-681.15,0.0001178,2]
[352578177,1739177433403,-681.15,0.00011917,2]
[352578179,1739177433412,-888.96,0.00011976,2]
[352578181,1739177433422,-681.15,0.00012054,2]
[352578182,1739177433432,-681.15,0.00012191,2]
[352578184,1739177433442,-1000.0,0.00012294,2]
[352578187,1739177433453,-1000.0,0.00012294,2]
[352578188,1739177433463,-1000.0,0.00012294,2]
[352578190,1739177433473,-1000.0,0.00012294,2]
[352578192,1739177433483,-1000.0,0.00012294,2]
[352578194,1739177433494,-1000.0,0.00012294,2]
[352578196,1739177433505,-1000.0,0.00012294,2]
[352578198,1739177433515,-1000.0,0.00012294,2]
[352578200,1739177433525,-1000.0,0.00012294,2]
[352578202,1739177433535,-1000.0,0.00012294,2]
[352578204,1739177433545,-681.15,0.00012328,2]
[352578206,1739177433555,-681.15,0.00012465,2]
[352578208,1739177433569,-1000.0,0.00012571,2]
[352578210,1739177433578,-681.15,0.00012602,2]
[352578212,1739177433588,-442.76,0.00012722,2]
[352578215,1739177433598,-681.15,0.00012739,2]
[352578216,1739177433608,-493.64844566,0.00012759,2]
[352578218,1739177433618,-5520.32959338,0.00012759,2]
[352578221,1739177433628,-681.15,0.00012876,2]
[352578223,1739177433639,-681.15,0.00013013,2]
[352578224,1739177433650,-681.17527661,0.0001315,2]
[352578227,1739177433660,-500.0,0.00013279,2]
[352578228,1739177433672,-1000.0,0.00013698,4]
[352578230,1739177433683,-516.4,0.00013698,2]
[352578233,1739177433694,-516.4,0.00013698,2]
[352578234,1739177433704,-516.4,0.00013698,2]
[352578236,1739177433714,-516.4,0.00013698,2]
[352578238,1739177433725,-516.4,0.00013698,2]
[352578240,1739177433736,-516.4,0.00013698,2]
[352578242,1739177433748,-516.4,0.00013698,2]
[352578244,1739177433758,-516.4,0.00013698,2]
[352578246,1739177433768,-516.4,0.00013698,2]
[352578248,1739177433778,-516.4,0.00013698,2]
[352578250,1739177433787,-516.4,0.00013698,2]
[352578252,1739177433797,-516.4,0.00013698,2]
[352578254,1739177433807,-516.4,0.00013698,2]
[352578256,1739177433816,-516.4,0.00013698,2]
[352578258,1739177433826,-516.4,0.00013698,2]
[352578260,1739177433836,-516.4,0.00013698,2]
[352578262,1739177433846,-516.4,0.00013698,2]
[352578264,1739177433856,-516.4,0.00013698,2]
[352578266,1739177433866,-516.4,0.00013698,2]
[352578268,1739177433875,-516.4,0.00013698,2]
[352578270,1739177433885,-516.4,0.00013698,2]
[352578272,1739177433895,-516.4,0.00013698,2]
[352578274,1739177433905,-516.4,0.00013698,2]
[352578276,1739177433914,-516.53063081,0.00013698,2]
[352578278,1739177433924,-211.72,0.00013699,2]
[352578280,1739177433934,-500.0,0.00013699,2]
[352578282,1739177433944,-500.0,0.00013805,2]
[352578284,1739177433953,-500.0,0.00013805,2]
[352578286,1739177433962,-500.0,0.00013805,2]
[352578288,1739177433972,-500.0,0.00013805,2]
[352578290,1739177433982,-500.0,0.00013805,2]
[352578292,1739177433994,-500.0,0.00013805,2]
[352578294,1739177434005,-500.0,0.00013805,2]
[352578296,1739177434014,-500.0,0.00013805,2]
[352578298,1739177434024,-500.0,0.00013805,2]
[352578300,1739177434034,-500.0,0.00013805,2]
[352578302,1739177434044,-500.0,0.00013805,2]
[352578304,1739177434054,-500.0,0.00013805,2]
[352578306,1739177434063,-500.0,0.00013805,2]
[352578308,1739177434074,-500.0,0.00013805,2]
[352578310,1739177434084,-500.0,0.00013805,2]
[352578312,1739177434094,-500.0,0.00013805,2]
[352578314,1739177434104,-500.0,0.00013805,2]
[352578316,1739177434114,-500.0,0.00013805,2]
[352578318,1739177434124,-500.0,0.00013805,2]
[352578320,1739177434134,-500.0,0.00013805,2]
[352578322,1739177434143,-500.0,0.00013805,2]
[352578323,1739177434153,-500.0,0.00013805,2]
[352578324,1739177434163,-500.0,0.00013805,2]
[352578325,1739177434172,-500.0,0.00013805,2]
[352578326,1739177434182,-500.0,0.00013805,2]
[352578327,1739177434192,-500.0,0.00013805,2]
[352578328,1739177434201,-500.0,0.00013805,2]
[352578329,1739177434211,-500.0,0.00013805,2]
[352578330,1739177434220,-500.0,0.00013805,2]
[352578331,1739177434231,-500.0,0.00013805,2]
[352578332,1739177434244,-500.0,0.00013805,2]
[352578333,1739177434255,-500.0,0.00013805,2]
[352578334,1739177434265,-635.0,0.00013805,2]
[352578336,1739177434276,-500.0,0.00013805,2]
[352578338,1739177434286,-500.0,0.00013805,2]
[352578340,1739177434295,-500.0,0.00013805,2]
[352578342,1739177434306,-500.0,0.00013805,2]
[352578344,1739177434315,-500.0,0.00013805,2]
[352578346,1739177434325,-500.0,0.00013805,2]
[352578348,1739177434335,-500.0,0.00013805,2]
[352578350,1739177434346,-500.0,0.00013805,2]
[352578352,1739177434356,-500.0,0.00013805,2]
[352578354,1739177434366,-500.0,0.00013805,2]
[352578356,1739177434376,-500.0,0.00013805,2]
[352578358,1739177434386,-500.0,0.00013805,2]
[352578360,1739177434396,-500.0,0.00013805,2]
[352578362,1739177434406,-500.0,0.00013805,2]
[352578364,1739177434415,-500.0,0.00013805,2]
[352578366,1739177434426,-500.0,0.00013805,2]
[352578368,1739177434435,-500.0,0.00013805,2]
[352578370,1739177434445,-500.0,0.00013805,2]
[352578372,1739177434456,-500.0,0.00013805,2]
[352578374,1739177434466,-500.0,0.00013805,2]
[352578376,1739177434476,-500.0,0.00013805,2]
[352578378,1739177434486,-500.0,0.00013805,2]
[352578380,1739177434499,-500.0,0.00013805,2]
[352578382,1739177434509,-500.0,0.00013805,2]
[352578383,1739177434518,-500.0,0.00013805,2]
[352578386,1739177434528,-500.0,0.00013805,2]
[352578388,1739177434539,-500.0,0.00013805,2]
[352578390,1739177434549,-500.0,0.00013805,2]
[352578392,1739177434561,-500.0,0.00013805,2]
[352578394,1739177434576,-500.0,0.00013805,2]
[352578396,1739177434586,-500.0,0.00013805,2]
[352578398,1739177434597,-500.0,0.00013805,2]
[352578400,1739177434607,-342.74247615,0.00013805,2]
[352578761,1739177438027,-157.25752385,0.00013805,2]
[352578765,1739177438037,-500.0,0.00013805,2]
[352578768,1739177438046,-500.0,0.00013805,2]
[352578770,1739177438055,-500.0,0.00013805,2]
[352578772,1739177438065,-500.0,0.00013805,2]
[352578774,1739177438075,-500.0,0.00013805,2]
[352578776,1739177438084,-500.0,0.00013805,2]
[352578778,1739177438093,-500.0,0.00013805,2]
[352578780,1739177438102,-500.0,0.00013805,2]
[352578782,1739177438112,-500.0,0.00013805,2]
[352578784,1739177438121,-500.0,0.00013805,2]
[352578786,1739177438130,-500.0,0.00013805,2]
[352578788,1739177438140,-500.0,0.00013805,2]
[352578789,1739177438150,-500.0,0.00013805,2]
[352578790,1739177438159,-500.0,0.00013805,2]
[352578791,1739177438169,-500.0,0.00013805,2]
[352578792,1739177438178,-500.0,0.00013805,2]
[352578793,1739177438187,-500.0,0.00013805,2]
[352578794,1739177438196,-500.0,0.00013805,2]
[352578795,1739177438206,-500.0,0.00013805,2]
[352578796,1739177438216,-500.0,0.00013805,2]
[352578797,1739177438225,-500.0,0.00013805,2]
[352578798,1739177438234,-500.0,0.00013805,2]
[352578799,1739177438244,-500.0,0.00013805,2]
[352578800,1739177438253,-500.0,0.00013805,2]
[352578801,1739177438262,-500.0,0.00013805,2]
[352578802,1739177438273,-500.0,0.00013805,2]
[352578804,1739177438282,-500.0,0.00013805,2]
[352578806,1739177438292,-500.0,0.00013805,2]
[352578808,1739177438301,-500.0,0.00013805,2]
[352578810,1739177438312,-500.0,0.00013805,2]
[352578812,1739177438322,-500.0,0.00013805,2]
[352578814,1739177438331,-500.0,0.00013805,2]
[352578816,1739177438340,-500.0,0.00013805,2]
[352578818,1739177438349,-500.0,0.00013805,2]
[352578820,1739177438359,-500.0,0.00013805,2]
[352578822,1739177438368,-500.0,0.00013805,2]
[352578824,1739177438377,-500.0,0.00013805,2]
[352578826,1739177438387,-500.0,0.00013805,2]
[352578828,1739177438397,-500.0,0.00013805,2]
[352578830,1739177438406,-500.0,0.00013805,2]
[352578832,1739177438415,-500.0,0.00013805,2]
[352578834,1739177438424,-500.0,0.00013805,2]
[352578836,1739177438432,-500.0,0.00013805,2]
[352578838,1739177438443,-500.0,0.00013805,2]
[352578840,1739177438452,-500.0,0.00013805,2]
[352578842,1739177438461,-500.0,0.00013805,2]
[352578844,1739177438470,-887.0,0.00013805,2]
[352578846,1739177438479,-500.0,0.00013805,2]
[352578848,1739177438489,-500.0,0.00013805,2]
[352578850,1739177438498,-500.0,0.00013805,2]
[352578852,1739177438507,-500.0,0.00013805,2]
[352578854,1739177438517,-500.0,0.00013805,2]
[352578856,1739177438526,-500.0,0.00013805,2]
[352578858,1739177438535,-500.0,0.00013805,2]
[352578860,1739177438544,-500.0,0.00013805,2]
[352578862,1739177438553,-500.0,0.00013805,2]
[352578864,1739177438565,-500.0,0.00013805,2]
[352578866,1739177438574,-500.0,0.00013805,2]
[352578868,1739177438583,-500.0,0.00013805,2]
[352578870,1739177438592,-500.0,0.00013805,2]
[352578872,1739177438601,-651.0,0.00013805,2]
[352578874,1739177438612,-608.32,0.00013805,2]
[352578876,1739177438622,-500.0,0.00013805,2]
[352578878,1739177438631,-500.0,0.00013805,2]
[352578880,1739177438641,-500.0,0.00013805,2]
[352578882,1739177438651,-500.0,0.00013805,2]
[352578884,1739177438660,-500.0,0.00013805,2]
[352578886,1739177438669,-500.0,0.00013805,2]
[352578888,1739177438678,-500.0,0.00013805,2]
[352578890,1739177438686,-1200.0,0.00013805,2]
[352578891,1739177438695,-150.45,0.00013805,2]
[352578893,1739177438705,-500.0,0.00013805,2]
[352578895,1739177438714,-500.0,0.00013805,2]
[352578897,1739177438723,-581.76,0.00013805,2]
[352578900,1739177438733,-500.0,0.00013805,2]
[352578903,1739177438742,-421.15,0.00013805,2]
[352578906,1739177438751,-500.0,0.00013805,2]
[352578908,1739177438760,-500.0,0.00013805,2]
[352578910,1739177438769,-500.0,0.00013805,2]
[352578912,1739177438778,-500.0,0.00013805,2]
[352578913,1739177438787,-500.0,0.00013805,2]
[352578914,1739177438795,-940.99815926,0.00013805,2]
[352578922,1739177438932,-8429.3831,0.00013805,2]
[352578924,1739177438944,-19492.85856,0.00013805,2]
[352578926,1739177438955,-29021.95018074,0.00013805,2]
[352578928,1739177438964,-500.18239216,0.00013827,2]
[352578930,1739177438973,-500.0,0.00013942,2]
[352578932,1739177438982,-500.0,0.00013942,2]
[352578934,1739177438991,-500.0,0.00013942,2]
[352578936,1739177439000,-500.0,0.00013942,2]
[352578938,1739177439010,-500.0,0.00013942,2]
[352578940,1739177439019,-500.0,0.00013942,2]
[352578942,1739177439028,-488.8478405,0.00013942,2]
[352578944,1739177439036,-500.0,0.00013942,2]
[352578946,1739177439046,-252.04,0.00013942,2]
[352578948,1739177439055,-581.76,0.00013942,2]
[352578950,1739177439064,-500.0,0.00013942,2]
[352578952,1739177439073,-500.0,0.00013942,2]
[352578954,1739177439082,-324.95181599,0.00013942,2]
[352578956,1739177439092,-500.0,0.00013942,2]
[352578958,1739177439101,-1000.0,0.00013967,2]
[352578960,1739177439110,-305.32568963,0.00013972,4]
[352578962,1739177439120,-355.95,0.00014079,2]
[352578964,1739177439130,-500.0,0.00014079,2]
[352578966,1739177439139,-500.0,0.00014079,2]
[352578968,1739177439149,-500.0,0.00014079,2]
[352578970,1739177439158,-500.0,0.00014079,2]
[352578972,1739177439167,-581.76,0.00014079,2]
[352578974,1739177439176,-500.0,0.00014079,2]
[352578976,1739177439186,-500.0,0.00014079,2]
[352578978,1739177439195,-500.0,0.00014079,2]
[352578980,1739177439204,-442.76,0.00014136,2]
[352578982,1739177439214,-227.39,0.00014209,2]
[352578984,1739177439223,-500.0,0.00014216,2]
[352578986,1739177439233,-500.0,0.00014216,2]
[352578988,1739177439242,-500.0,0.00014216,2]
[352578990,1739177439252,-500.0,0.00014216,2]
[352578992,1739177439262,-581.76,0.00014216,2]
[352578994,1739177439271,-500.0,0.00014216,2]
[352578996,1739177439280,-500.0,0.00014216,2]
[352578998,1739177439289,-500.0,0.00014216,2]
[352579000,1739177439299,-500.0,0.00014218,2]
[352579002,1739177439309,-1041.73,0.00014219,2]
[352579004,1739177439318,-1041.73,0.00014219,2]
[352579006,1739177439329,-1041.73,0.00014219,2]
[352579008,1739177439338,-1041.73,0.00014219,2]
[352579010,1739177439348,-1041.73,0.00014219,2]
[352579012,1739177439357,-1041.73,0.00014219,2]
[352579014,1739177439367,-1041.73,0.00014219,2]
[352579016,1739177439376,-1041.73,0.00014219,2]
[352579018,1739177439386,-1041.73,0.00014219,2]
[352579020,1739177439396,-1041.73,0.00014219,2]
[352579022,1739177439405,-1041.73,0.00014219,2]
[352579024,1739177439415,-1041.73,0.00014219,2]
[352579026,1739177439425,-1041.73,0.00014219,2]
[352579028,1739177439435,-1041.73,0.00014219,2]
[352579030,1739177439444,-1041.73,0.00014219,2]
[352579032,1739177439455,-1041.73,0.00014219,2]
[352579034,1739177439465,-1041.73,0.00014219,2]
[352579036,1739177439475,-1041.73,0.00014219,2]
[352579038,1739177439489,-1041.73,0.00014219,2]
[352579040,1739177439499,-1041.73,0.00014219,2]
[352579043,1739177439510,-1041.73,0.00014219,2]
[352579045,1739177439520,-1041.73,0.00014219,2]
[352579047,1739177439530,-1041.73,0.00014219,2]
[352579049,1739177439540,-1041.88931525,0.00014219,2]
[352579051,1739177439549,-888.96,0.0001424,2]
[352579053,1739177439559,-500.0,0.00014353,2]
[352579054,1739177439570,-500.0,0.00014353,2]
[352579056,1739177439579,-500.0,0.00014353,2]
[352579058,1739177439589,-588.55537855,0.00014353,2]
[352579060,1739177439599,-581.76,0.00014353,2]
[352579062,1739177439613,-445.83,0.00014353,2]
[352579064,1739177439622,-500.0,0.00014353,2]
[352579066,1739177439632,-500.0,0.00014353,2]
[352579068,1739177439645,-500.0,0.00014355,2]
[352579070,1739177439654,-500.0,0.0001449,2]
[352579072,1739177439664,-500.0,0.0001449,2]
[352579074,1739177439674,-500.0,0.0001449,2]
[352579076,1739177439683,-581.76,0.0001449,2]
[352579078,1739177439693,-319.52,0.0001449,2]
[352579080,1739177439702,-500.0,0.0001449,2]
[352579082,1739177439712,-500.0,0.00014492,2]
[352579084,1739177439722,-500.0,0.00014627,2]
[352579086,1739177439732,-500.0,0.00014627,2]
[352579088,1739177439742,-500.0,0.00014627,2]
[352579090,1739177439752,-581.76,0.00014627,2]
[352579092,1739177439761,-500.0,0.00014627,2]
[352579094,1739177439772,-500.0,0.00014629,2]
[352579096,1739177439781,-500.0,0.00014764,2]
[352579098,1739177439790,-555.34647627,0.00014764,2]
[352579100,1739177439799,-500.0,0.00014764,2]
[352579102,1739177439809,-581.76,0.00014764,2]
[352579104,1739177439818,-500.0,0.00014764,2]
[352579106,1739177439827,-500.0,0.00014766,2]
[352579108,1739177439837,-1900.0,0.00014811,2]
[352579110,1739177439846,-500.0,0.00014901,2]
[352579112,1739177439855,-500.0,0.00014901,2]
[352579114,1739177439864,-581.76,0.00014901,2]
[352579116,1739177439873,-500.0,0.00014901,2]
[352579117,1739177439883,-500.0,0.00014903,2]
[352579119,1739177439892,-500.0,0.0001502,2]
[352579121,1739177439902,-193.95752397,0.00015038,2]
[352579124,1739177439911,-500.0,0.00015038,2]
[352579126,1739177439921,-581.76,0.00015038,2]
[352579127,1739177439931,-500.0,0.00015038,2]
[352579129,1739177439941,-500.0,0.0001504,2]
[352579131,1739177439950,-300.0,0.00015068,2]
[352579133,1739177439960,-487.39687686,0.00015175,2]
[352579135,1739177439969,-581.76,0.00015175,2]
[352579137,1739177439978,-500.0,0.00015175,2]
[352579154,1739177440124,-388.41,0.00015301,2]
[352579156,1739177440135,-581.76,0.00015312,2]
[352579158,1739177440145,-250.21420521,0.00015312,2]
[352579160,1739177440155,-548.92611718,0.00015364,2]
[352579164,1739177440182,-500.0,0.00015177,2]
[352579166,1739177440192,-451.07388282,0.00015364,2]
[352579168,1739177440202,-581.76,0.00015449,2]
[352579170,1739177440211,-442.76,0.00015549,2]
[352579172,1739177440221,-1000.0,0.00015568,2]
[352579174,1739177440231,-581.76,0.00015586,2]
[352579176,1739177440243,-200.0,0.00015665,2]
[352579178,1739177440253,-581.76,0.00015723,2]
[352579180,1739177440263,-581.76,0.0001586,2]
[352579182,1739177440274,-367.0,0.000159,2]
[352579184,1739177440284,-747.0,0.000159,2]
[352579186,1739177440294,-231.0,0.000159,2]
[352579188,1739177440303,-500.0,0.00015907,2]
[352579190,1739177440313,-1000.0,0.00015907,2]
[352579192,1739177440323,-581.76,0.00015996,2]
[352579194,1739177440333,-152.0,0.00016125,3]
[352579196,1739177440344,-581.76,0.00016133,2]
[352579198,1739177440353,-1900.0,0.00016181,2]
[352579200,1739177440363,-581.76,0.0001627,2]
[352579202,1739177440372,-581.76,0.00016407,2]
[352579204,1739177440382,-500.0,0.00016437,2]
[352579206,1739177440391,-500.0,0.00016437,2]
[352579208,1739177440401,-317.24287914,0.00016437,2]
[352579210,1739177440411,-206.02176052,0.00016437,2]
[352579212,1739177440420,-500.0,0.00016437,2]
[352579214,1739177440430,-500.0,0.00016437,2]
[352579216,1739177440440,-500.0,0.00016437,2]
[352579218,1739177440449,-500.0,0.00016437,2]
[352579220,1739177440459,-646.8,0.00016437,2]
[352579222,1739177440468,-500.0,0.00016437,2]
[352579224,1739177440477,-500.0,0.00016437,2]
[352579226,1739177440487,-665.63,0.00016437,2]
[352579228,1739177440497,-500.0,0.00016437,2]
[352579230,1739177440506,-500.0,0.00016437,2]
[352579232,1739177440516,-500.0,0.00016437,2]
[352579234,1739177440525,-500.0,0.00016437,2]
[352579236,1739177440535,-500.0,0.00016437,2]
[352579238,1739177440544,-500.0,0.00016437,2]
[352579240,1739177440553,-500.0,0.00016437,2]
[352579242,1739177440565,-500.0,0.00016437,2]
[352579244,1739177440578,-500.0,0.00016437,2]
[352579246,1739177440587,-500.0,0.00016437,2]
[352579248,1739177440597,-500.0,0.00016437,2]
[352579250,1739177440607,-500.0,0.00016437,2]
[352579252,1739177440616,-500.0,0.00016437,2]
[352579255,1739177440626,-500.0,0.00016437,2]
[352579257,1739177440636,-500.0,0.00016437,2]
[352579258,1739177440646,-500.0,0.00016437,2]
[352579260,1739177440655,-500.0,0.00016437,2]
[352579263,1739177440666,-500.0,0.00016437,2]
[352579265,1739177440676,-500.0,0.00016437,2]
[352579267,1739177440685,-500.0,0.00016437,2]
[352579269,1739177440695,-500.0,0.00016437,2]
[352579271,1739177440704,-674.66,0.00016437,2]
[352579273,1739177440714,-500.0,0.00016437,2]
[352579275,1739177440724,-500.0,0.00016437,2]
[352579277,1739177440734,-500.0,0.00016437,2]
[352579279,1739177440744,-500.0,0.00016437,2]
[352579281,1739177440753,-500.0,0.00016437,2]
[352579283,1739177440762,-500.0,0.00016437,2]
[352579285,1739177440771,-500.0,0.00016437,2]
[352579287,1739177440781,-1000.0,0.00016438,60]
[352579289,1739177440790,-502.03674178,0.00016438,2]
[352579291,1739177440800,-1149.29,0.00016438,2]
[352579293,1739177440809,-1149.29,0.00016438,2]
[352579295,1739177440818,-1149.29,0.00016438,2]
[352579297,1739177440827,-1149.29,0.00016438,2]
[352579298,1739177440837,-1149.29,0.00016438,2]
[352579300,1739177440847,-1149.29,0.00016438,2]
[352579302,1739177440856,-1149.29,0.00016438,2]
[352579305,1739177440866,-1149.29,0.00016438,2]
[352579306,1739177440876,-1149.29,0.00016438,2]
[352579309,1739177440886,-1149.29,0.00016438,2]
[352579311,1739177440895,-1149.29,0.00016438,2]
[352579313,1739177440905,-1149.29,0.00016438,2]
[352579314,1739177440915,-1149.29,0.00016438,2]
[352579315,1739177440925,-1149.29,0.00016438,2]
[352579316,1739177440935,-1149.29,0.00016438,2]
[352579317,1739177440945,-1149.29,0.00016438,2]
[352579318,1739177440955,-1149.29,0.00016438,2]
[352579319,1739177440964,-1149.29,0.00016438,2]
[352579320,1739177440974,-1149.29,0.00016438,2]
[352579321,1739177440983,-1149.29,0.00016438,2]
[352579322,1739177440993,-300.0,0.00016438,2]
[352579324,1739177441002,-888.96,0.00016504,2]
[352579326,1739177441012,-581.76,0.00016544,2]
[352579328,1739177441022,-1149.29,0.00016544,2]
[352579330,1739177441031,-1500.0,0.0001657,2]
[352579332,1739177441041,-500.0,0.00016574,2]
[352579334,1739177441053,-500.0,0.00016574,2]
[352579336,1739177441063,-932.81584938,0.00016574,60]
[352579338,1739177441072,-665.63,0.00016574,2]
[352579340,1739177441082,-384.99548263,0.00016574,2]
[352579342,1739177441091,-674.66,0.00016574,2]
[352579344,1739177441102,-500.0,0.00016574,2]
[352579347,1739177441111,-152.0,0.00016581,4]
[352579349,1739177441121,-500.0,0.00016657,2]